fUSD/lending_fUSD_20240105
["ID","MTS","AMOUNT","RATE_DAILY","PERIOD"]
[310262292,1704425463860,-500.0,0.0003589,3]
[310262293,1704425463869,-500.0,0.0003589,3]
[310262294,1704425463878,-500.0,0.0003589,3]
[310262295,1704425463887,-500.0,0.0003589,3]
[310262296,1704425463897,-500.0,0.0003589,3]
[310262297,1704425463906,-500.0,0.0003589,3]
[310262298,1704425463919,-500.0,0.0003589,3]
[310262299,1704425463929,-500.0,0.0003589,3]
[310262300,1704425463938,-500.0,0.0003589,3]
[310262301,1704425463948,-500.0,0.0003589,3]
[310262302,1704425463958,-500.0,0.0003589,3]
[310262303,1704425463967,-500.0,0.0003589,3]
[310262304,1704425463976,-500.0,0.0003589,3]
[310262305,1704425463985,-500.0,0.0003589,3]
[310262306,1704425463994,-500.0,0.0003589,3]
[310262307,1704425464004,-302.8521309,0.0003589,3]
[310262308,1704425464013,-500.0,0.0003589,3]
[310262309,1704425464022,-520.05283547,0.0003589,3]
[310262310,1704425464031,-518.15106899,0.0003589,3]
[310262311,1704425464041,-500.0,0.0003589,3]
[310262312,1704425464050,-500.0,0.0003589,3]
[310262313,1704425464059,-505.1255447,0.0003589,3]
[310262314,1704425464069,-500.0,0.0003589,3]
[310262315,1704425464078,-500.0,0.0003589,3]
[310262316,1704425464087,-500.0,0.0003589,3]
[310262317,1704425464096,-500.0,0.0003589,3]
[310262318,1704425464106,-500.0,0.0003589,3]
[310262319,1704425464115,-500.0,0.0003589,3]
[310262320,1704425464124,-500.0,0.0003589,3]
[310262321,1704425464133,-506.00813832,0.0003589,3]
[310262322,1704425464143,-500.0,0.0003589,3]
[310262323,1704425464152,-500.0,0.0003589,3]
[310262324,1704425464162,-500.0,0.0003589,3]
[310262325,1704425464171,-500.0,0.0003589,3]
[310262326,1704425464180,-500.0,0.0003589,3]
[310262327,1704425464189,-500.0,0.0003589,3]
[310262328,1704425464199,-500.0,0.0003589,3]
[310262329,1704425464208,-500.0,0.0003589,3]
[310262330,1704425464217,-500.0,0.0003589,3]
[310262331,1704425464226,-500.0,0.0003589,3]
[310262332,1704425464236,-505.08134909,0.0003589,3]
[310262333,1704425464245,-500.0,0.0003589,3]
[310262334,1704425464255,-506.81803627,0.0003589,3]
[310262335,1704425464264,-500.0,0.0003589,3]
[310262336,1704425464273,-500.0,0.0003589,3]
[310262337,1704425464282,-500.0,0.0003589,3]
[310262338,1704425464291,-500.0,0.0003589,3]
[310262339,1704425464300,-500.0,0.0003589,3]
[310262340,1704425464310,-500.0,0.0003589,3]
[310262341,1704425464321,-500.0,0.0003589,3]
[310262342,1704425464330,-210.16688671,0.0003589,3]
[310262343,1704425464339,-180.86531196,0.0003589,3]
[310262344,1704425464349,-500.0,0.0003589,3]
[310262345,1704425464358,-500.0,0.0003589,3]
[310262346,1704425464367,-500.0,0.0003589,3]
[310262347,1704425464377,-500.0,0.0003589,3]
[310262348,1704425464386,-507.11647256,0.0003589,3]
[310262349,1704425464395,-500.0,0.0003589,3]
[310262350,1704425464405,-508.58863047,0.0003589,3]
[310262351,1704425464414,-500.0,0.0003589,3]
[310262352,1704425464424,-500.0,0.0003589,3]
[310262353,1704425464433,-500.0,0.0003589,3]
[310262354,1704425464443,-504.37686234,0.0003589,3]
[310262355,1704425464453,-337.25141357,0.0003589,3]
[310262356,1704425464466,-500.0,0.0003589,3]
[310262357,1704425464476,-500.0,0.0003589,3]
[310262358,1704425464485,-500.0,0.0003589,3]
[310262359,1704425464496,-500.0,0.0003589,3]
[310262360,1704425464506,-500.0,0.0003589,3]
[310262361,1704425464515,-500.0,0.0003589,3]
[310262362,1704425464526,-500.0,0.0003589,3]
[310262363,1704425464535,-500.0,0.0003589,3]
[310262364,1704425464544,-500.0,0.0003589,3]
[310262365,1704425464553,-500.18,0.0003589,3]
[310262366,1704425464565,-500.0,0.0003589,3]
[310262367,1704425464574,-500.0,0.0003589,3]
[310262368,1704425464584,-500.0,0.0003589,3]
[310262369,1704425464593,-500.0,0.0003589,3]
[310262370,1704425464603,-500.0,0.0003589,3]
[310262371,1704425464613,-500.0,0.0003589,3]
[310262372,1704425464623,-500.0,0.0003589,3]
[310262373,1704425464633,-500.0,0.0003589,3]
[310262374,1704425464642,-500.0,0.0003589,3]
[310262375,1704425464654,-595.92728402,0.0003589,3]
[310262376,1704425464664,-500.0,0.0003589,3]
[310262377,1704425464674,-502.74239309,0.0003589,3]
[310262378,1704425464684,-1197.77,0.0003589,3]
[310262379,1704425464694,-558.86440768,0.0003589,3]
[310262380,1704425464704,-500.0,0.0003589,3]
[310262381,1704425464714,-555.80830263,0.0003589,3]
[310262382,1704425464724,-500.0,0.0003589,3]
[310262383,1704425464734,-500.0,0.0003589,3]
[310262384,1704425464746,-500.0,0.0003589,3]
[310262385,1704425464756,-500.0,0.0003589,3]
[310262386,1704425464767,-500.0,0.0003589,3]
[310262387,1704425464777,-500.0,0.0003589,3]
[310262388,1704425464786,-500.0,0.0003589,3]
[310262389,1704425464796,-500.0,0.0003589,3]
[310262390,1704425464806,-500.0,0.0003589,3]
[310262391,1704425464819,-500.0,0.0003589,3]
[310262392,1704425464829,-500.0,0.0003589,3]
[310262393,1704425464839,-524.60660943,0.0003589,3]
[310262394,1704425464850,-500.0,0.0003589,3]
[310262395,1704425464860,-500.0,0.0003589,3]
[310262396,1704425464871,-500.0,0.0003589,3]
[310262397,1704425464881,-500.0,0.0003589,3]
[310262398,1704425464891,-500.0,0.0003589,3]
[310262399,1704425464901,-222.40304665,0.0003589,3]
[310262400,1704425464911,-500.0,0.0003589,3]
[310262401,1704425464921,-500.0,0.0003589,3]
[310262402,1704425464930,-500.0,0.0003589,3]
[310262403,1704425464941,-500.0,0.0003589,3]
[310262404,1704425464950,-500.0,0.0003589,3]
[310262405,1704425464960,-239.86809921,0.0003589,3]
[310262406,1704425464970,-500.0,0.0003589,3]
[310262407,1704425464979,-652.01,0.0003589,3]
[310262408,1704425464988,-508.36025641,0.0003589,3]
[310262409,1704425464998,-500.0,0.0003589,3]
[310262410,1704425465008,-500.0,0.0003589,3]
[310262411,1704425465017,-500.0,0.0003589,3]
[310262412,1704425465026,-500.0,0.0003589,3]
[310262413,1704425465036,-500.0,0.0003589,3]
[310262414,1704425465045,-514.39256458,0.0003589,3]
[310262415,1704425465054,-500.0,0.0003589,3]
[310262416,1704425465066,-500.0,0.0003589,3]
[310262417,1704425465075,-500.0,0.0003589,3]
[310262418,1704425465084,-1000.0,0.0003589,3]
[310262419,1704425465093,-511.87,0.0003589,3]
[310262420,1704425465102,-500.0,0.0003589,3]
[310262421,1704425465112,-195.83961116,0.0003589,3]
[310262422,1704425465122,-500.0,0.0003589,3]
[310262423,1704425465131,-501.9845198,0.0003589,3]
[310262424,1704425465141,-500.0,0.0003589,3]
[310262425,1704425465151,-500.0,0.0003589,3]
[310262426,1704425465161,-500.0,0.0003589,3]
[310262427,1704425465171,-507.12116071,0.0003589,3]
[310262428,1704425465180,-500.0,0.0003589,3]
[310262429,1704425465189,-500.0,0.0003589,3]
[310262430,1704425465198,-513.27964233,0.0003589,3]
[310262431,1704425465262,-500.0,0.0003589,3]
[310262432,1704425465272,-167.43610839,0.0003589,3]
[310262433,1704425465282,-3155.09,0.0003589,3]
[310262434,1704425465291,-500.0,0.0003589,3]
[310262435,1704425465300,-500.0,0.0003589,3]
[310262436,1704425465310,-1385.33,0.0003589,3]
[310262437,1704425465322,-500.0,0.0003589,3]
[310262438,1704425465331,-500.0,0.0003589,3]
[310262439,1704425465341,-500.0,0.0003589,3]
[310262440,1704425465350,-500.0,0.0003589,3]
[310262441,1704425465359,-500.0,0.0003589,3]
[310262442,1704425465368,-500.0,0.0003589,3]
[310262443,1704425465378,-500.0,0.0003589,3]
[310262444,1704425465387,-500.0,0.0003589,3]
[310262445,1704425465396,-327.12916012,0.0003589,3]
[310262446,1704425465405,-869.26,0.0003589,3]
[310262447,1704425465415,-434.55785196,0.0003589,3]
[310262448,1704425465424,-500.0,0.0003589,3]
[310262449,1704425465433,-500.0,0.0003589,3]
[310262450,1704425465443,-500.0,0.0003589,3]
[310262451,1704425465453,-500.0,0.0003589,3]
[310262452,1704425465464,-500.0,0.0003589,3]
[310262453,1704425465473,-523.5408792,0.0003589,3]
[310262454,1704425465483,-500.0,0.0003589,3]
[310262455,1704425465492,-500.0,0.0003589,3]
[310262456,1704425465500,-500.0,0.0003589,3]
[310262457,1704425465508,-500.0,0.0003589,3]
[310262458,1704425465517,-500.0,0.0003589,3]
[310262459,1704425465526,-559.1,0.0003589,3]
[310262460,1704425465534,-500.0,0.0003589,3]
[310262461,1704425465544,-500.0,0.0003589,3]
[310262462,1704425465554,-500.0,0.0003589,3]
[310262463,1704425465565,-500.0,0.0003589,3]
[310262464,1704425465575,-500.0,0.0003589,3]
[310262465,1704425465585,-500.0,0.0003589,3]
[310262466,1704425465594,-515.04783415,0.0003589,3]
[310262467,1704425465604,-500.0,0.0003589,3]
[310262468,1704425465613,-500.0,0.0003589,3]
[310262469,1704425465623,-500.0,0.0003589,3]
[310262470,1704425465633,-500.0,0.0003589,3]
[310262471,1704425465642,-500.0,0.0003589,3]
[310262472,1704425465651,-500.0,0.0003589,3]
[310262473,1704425465661,-500.0,0.0003589,3]
[310262474,1704425465670,-500.0,0.0003589,3]
[310262475,1704425465680,-2569.95,0.0003589,3]
[310262476,1704425465689,-500.0,0.0003589,3]
[310262477,1704425465699,-576.28,0.0003589,3]
[310262478,1704425465709,-500.0,0.0003589,3]
[310262479,1704425465719,-500.0,0.0003589,3]
[310262480,1704425465729,-500.0,0.0003589,3]
[310262481,1704425465738,-631.64273046,0.0003589,3]
[310262482,1704425465749,-500.0,0.0003589,3]
[310262483,1704425465758,-467.57843334,0.0003589,3]
[310262484,1704425465769,-741.91,0.0003589,3]
[310262485,1704425465778,-526.7692796,0.0003589,3]
[310262486,1704425465788,-1829.56,0.0003589,3]
[310262487,1704425465798,-268.23727564,0.0003589,3]
[310262488,1704425465807,-500.0,0.0003589,3]
[310262489,1704425465818,-500.0,0.0003589,3]
[310262490,1704425465827,-507.66819431,0.0003589,3]
[310262491,1704425465836,-500.0,0.0003589,3]
[310262492,1704425465845,-500.0,0.0003589,3]
[310262493,1704425465855,-448.49162992,0.0003589,3]
[310262494,1704425465865,-500.0,0.0003589,3]
[310262495,1704425465874,-500.0,0.0003589,3]
[310262496,1704425465884,-500.0,0.0003589,3]
[310262497,1704425465894,-508.18505389,0.0003589,3]
[310262498,1704425465903,-2961.4,0.0003589,3]
[310262499,1704425465913,-458.13950915,0.0003589,3]
[310262500,1704425465922,-503.46776219,0.0003589,3]
[310262501,1704425465932,-675.46,0.0003589,3]
[310262502,1704425465941,-198.64163585,0.0003589,3]
[310262503,1704425465951,-500.0,0.0003589,3]
[310262504,1704425465961,-2578.41,0.0003589,3]
[310262505,1704425465970,-500.0,0.0003589,3]
[310262506,1704425465980,-576.96,0.0003589,3]
[310262507,1704425465989,-500.0,0.0003589,3]
[310262508,1704425465999,-526.82752723,0.0003589,3]
[310262509,1704425466008,-500.0,0.0003589,3]
[310262510,1704425466018,-500.0,0.0003589,3]
[310262511,1704425466027,-1512.37,0.0003589,3]
[310262512,1704425466037,-168.97029381,0.0003589,3]
[310262513,1704425466046,-500.0,0.0003589,3]
[310262514,1704425466055,-500.0,0.0003589,3]
[310262515,1704425466065,-500.0,0.0003589,3]
[310262516,1704425466075,-500.0,0.0003589,3]
[310262517,1704425466085,-508.10411881,0.0003589,3]
[310262518,1704425466094,-504.24225364,0.0003589,3]
[310262519,1704425466104,-500.0,0.0003589,3]
[310262520,1704425466113,-500.0,0.0003589,3]
[310262521,1704425466123,-1272.83,0.0003589,3]
[310262522,1704425466133,-535.15826599,0.0003589,3]
[310262523,1704425466142,-500.0,0.0003589,3]
[310262524,1704425466151,-500.0,0.0003589,3]
[310262525,1704425466161,-452.77131415,0.0003589,3]
[310262526,1704425466170,-500.0,0.0003589,3]
[310262527,1704425466180,-500.0,0.0003589,3]
[310262528,1704425466189,-534.09900617,0.0003589,3]
[310262529,1704425466198,-743.82,0.0003589,3]
[310262530,1704425466207,-500.0,0.0003589,3]
[310262531,1704425466217,-500.0,0.0003589,3]
[310262532,1704425466227,-500.0,0.0003589,3]
[310262533,1704425466237,-194.57485939,0.0003589,3]
[310262534,1704425466246,-500.0,0.0003589,3]
[310262535,1704425466255,-500.0,0.0003589,3]
[310262536,1704425466265,-500.0,0.0003589,3]
[310262537,1704425466275,-500.0,0.0003589,3]
[310262538,1704425466284,-616.09,0.0003589,3]
[310262539,1704425466294,-2881.09,0.0003589,3]
[310262540,1704425466303,-500.0,0.0003589,2]
[310262541,1704425466313,-500.0,0.0003589,3]
[310262542,1704425466324,-500.0,0.0003589,3]
[310262543,1704425466334,-500.0,0.0003589,3]
[310262544,1704425466343,-500.0,0.0003589,3]
[310262545,1704425466352,-4571.22,0.0003589,3]
[310262546,1704425466362,-500.0,0.0003589,3]
[310262547,1704425466371,-500.0,0.0003589,3]
[310262548,1704425466380,-4339.97,0.0003589,3]
[310262549,1704425466390,-4803.84,0.0003589,3]
[310262550,1704425466399,-500.0,0.0003589,3]
[310262551,1704425466408,-500.0,0.0003589,3]
[310262552,1704425466417,-500.0,0.0003589,3]
[310262553,1704425466427,-500.0,0.0003589,3]
[310262554,1704425466436,-500.0,0.0003589,3]
[310262555,1704425466447,-699.3,0.0003589,3]
[310262556,1704425466456,-500.0,0.0003589,3]
[310262557,1704425466468,-500.0,0.0003589,3]
[310262558,1704425466478,-500.0,0.0003589,3]
[310262559,1704425466488,-500.0,0.0003589,3]
[310262560,1704425466498,-500.0,0.0003589,3]
[310262561,1704425466509,-1187.06,0.0003589,3]
[310262562,1704425466519,-741.45,0.0003589,3]
[310262563,1704425466530,-713.99,0.0003589,3]
[310262564,1704425466540,-500.0,0.0003589,3]
[310262565,1704425466550,-1151.77,0.0003589,3]
[310262566,1704425466560,-1438.74,0.0003589,3]
[310262567,1704425466574,-500.0,0.0003589,3]
[310262568,1704425466584,-500.0,0.0003589,3]
[310262569,1704425466594,-500.0,0.0003589,3]
[310262570,1704425466604,-1780.23,0.0003589,3]
[310262571,1704425466615,-510.37399243,0.0003589,3]
[310262572,1704425466625,-1941.56,0.0003589,3]
[310262573,1704425466634,-500.0,0.0003589,3]
[310262574,1704425466644,-500.0,0.0003589,3]
[310262575,1704425466653,-737.76,0.0003589,3]
[310262576,1704425466664,-507.12,0.0003589,3]
[310262577,1704425466673,-500.0,0.0003589,3]
[310262578,1704425466683,-500.0,0.0003589,3]
[310262579,1704425466693,-500.0,0.0003589,3]
[310262580,1704425466703,-1683.81,0.0003589,3]
[310262581,1704425466714,-500.0,0.0003589,3]
[310262582,1704425466724,-500.0,0.0003589,3]
[310262583,1704425466735,-757.21,0.0003589,3]
[310262584,1704425466746,-508.18778605,0.0003589,3]
[310262585,1704425466756,-605.55,0.0003589,3]
[310262586,1704425466768,-500.0,0.0003589,3]
[310262587,1704425466778,-721.22,0.0003589,3]
[310262588,1704425466788,-1636.73,0.0003589,3]
[310262589,1704425466798,-1818.9,0.0003589,3]
[310262590,1704425466808,-808.83,0.0003589,3]
[310262591,1704425466819,-500.0,0.0003589,3]
[310262592,1704425466829,-500.0,0.0003589,3]
[310262593,1704425466839,-500.0,0.0003589,3]
[310262594,1704425466849,-500.0,0.0003589,3]
[310262595,1704425466859,-1154.3,0.0003589,3]
[310262596,1704425466869,-500.0,0.0003589,3]
[310262597,1704425466879,-500.0,0.0003589,3]
[310262598,1704425466890,-500.0,0.0003589,3]
[310262599,1704425466900,-2367.44,0.0003589,3]
[310262600,1704425466910,-500.0,0.0003589,3]
[310262601,1704425466919,-500.0,0.0003589,3]
[310262602,1704425466930,-685.21,0.0003589,3]
[310262603,1704425466941,-720.43,0.0003589,3]
[310262604,1704425466951,-500.0,0.0003589,3]
[310262605,1704425466961,-500.0,0.0003589,3]
[310262606,1704425466972,-12713.82,0.0003589,3]
[310262607,1704425466982,-500.0,0.0003589,3]
[310262608,1704425466991,-500.0,0.0003589,3]
[310262609,1704425467001,-500.0,0.0003589,3]
[310262610,1704425467011,-500.0,0.0003589,3]
[310262611,1704425467020,-537.21,0.0003589,3]
[310262612,1704425467029,-500.0,0.0003589,3]
[310262613,1704425467039,-500.0,0.0003589,3]
[310262614,1704425467048,-500.0,0.0003589,3]
[310262615,1704425467057,-500.0,0.0003589,3]
[310262616,1704425467069,-1128.74,0.0003589,3]
[310262617,1704425467078,-1038.9,0.0003589,3]
[310262618,1704425467087,-500.0,0.0003589,3]
[310262619,1704425467097,-500.0,0.0003589,3]
[310262620,1704425467106,-500.0,0.0003589,3]
[310262621,1704425467115,-500.0,0.0003589,3]
[310262622,1704425467125,-500.0,0.0003589,3]
[310262623,1704425467134,-625.39926918,0.0003589,3]
[310262624,1704425467143,-1358.49,0.0003589,3]
[310262625,1704425467153,-856.28,0.0003589,3]
[310262626,1704425467162,-500.0,0.0003589,3]
[310262627,1704425467172,-372.45698487,0.0003589,3]
[310262628,1704425467182,-500.0,0.0003589,3]
[310262629,1704425467192,-1000.47,0.0003589,3]
[310262630,1704425467201,-1014.3,0.0003589,3]
[310262631,1704425467211,-500.0,0.0003589,3]
[310262632,1704425467220,-1090.34,0.0003589,3]
[310262633,1704425467230,-500.0,0.0003589,3]
[310262634,1704425467239,-1239.16,0.0003589,3]
[310262635,1704425467249,-500.0,0.0003589,3]
[310262636,1704425467259,-527.23787193,0.0003589,3]
[310262637,1704425467268,-500.0,0.0003589,3]
[310262638,1704425467277,-500.0,0.0003589,3]
[310262639,1704425467287,-500.0,0.0003589,3]
[310262640,1704425467296,-5374.08,0.0003589,3]
[310262641,1704425467306,-500.0,0.0003589,3]
[310262642,1704425467318,-532.58,0.0003589,3]
[310262643,1704425467327,-500.0,0.0003589,3]
[310262644,1704425467337,-903.2,0.0003589,3]
[310262645,1704425467346,-267.28576842,0.0003589,3]
[310262646,1704425467358,-500.0,0.0003589,3]
[310262647,1704425467367,-500.0,0.0003589,3]
[310262648,1704425467377,-500.0,0.0003589,3]
[310262649,1704425467386,-500.0,0.0003589,3]
[310262650,1704425467395,-543.93,0.0003589,3]
[310262651,1704425467404,-500.0,0.0003589,3]
[310262652,1704425467415,-847.35,0.0003589,3]
[310262653,1704425467424,-500.0,0.0003589,3]
[310262654,1704425467433,-253.19860242,0.0003589,3]
[310262655,1704425467442,-500.0,0.0003589,3]
[310262656,1704425467454,-926.28,0.0003589,3]
[310262657,1704425467467,-530.7020881,0.0003589,3]
[310262658,1704425467477,-500.0,0.0003589,3]
[310262659,1704425467486,-525.14,0.0003589,3]
[310262660,1704425467496,-500.0,0.0003589,3]
[310262661,1704425467505,-500.0,0.0003589,3]
[310262662,1704425467514,-500.0,0.0003589,3]
[310262663,1704425467523,-500.0,0.0003589,3]
[310262664,1704425467532,-500.0,0.0003589,3]
[310262665,1704425467543,-500.0,0.0003589,3]
[310262666,1704425467554,-597.71,0.0003589,3]
[310262667,1704425467564,-500.0,0.0003589,3]
[310262668,1704425467575,-7505.95,0.0003589,3]
[310262669,1704425467585,-500.0,0.0003589,3]
[310262670,1704425467594,-714.54,0.0003589,3]
[310262671,1704425467603,-500.0,0.0003589,3]
[310262672,1704425467613,-500.0,0.0003589,3]
[310262673,1704425467624,-500.0,0.0003589,3]
[310262674,1704425467634,-500.0,0.0003589,3]
[310262675,1704425467644,-500.0,0.0003589,3]
[310262676,1704425467654,-500.0,0.0003589,3]
[310262677,1704425467665,-500.0,0.0003589,3]
[310262678,1704425467676,-500.0,0.0003589,3]
[310262679,1704425467686,-500.0,0.0003589,3]
[310262680,1704425467696,-517.34780467,0.0003589,3]
[310262681,1704425467706,-541.24236475,0.0003589,3]
[310262682,1704425467716,-500.0,0.0003589,3]
[310262683,1704425467725,-500.0,0.0003589,3]
[310262684,1704425467735,-500.0,0.0003589,3]
[310262685,1704425467745,-500.0,0.0003589,3]
[310262686,1704425467755,-500.0,0.0003589,3]
[310262687,1704425467765,-836.59,0.0003589,3]
[310262688,1704425467775,-500.0,0.0003589,3]
[310262689,1704425467785,-500.0,0.0003589,3]
[310262690,1704425467795,-500.0,0.0003589,3]
[310262691,1704425467804,-500.0,0.0003589,3]
[310262692,1704425467814,-511.93873311,0.0003589,3]
[310262693,1704425467826,-500.0,0.0003589,3]
[310262694,1704425467835,-500.0,0.0003589,3]
[310262695,1704425467845,-500.0,0.0003589,3]
[310262696,1704425467855,-500.0,0.0003589,3]
[310262697,1704425467865,-843.48,0.0003589,3]
[310262698,1704425467875,-500.0,0.0003589,3]
[310262699,1704425467885,-500.0,0.0003589,3]
[310262700,1704425467895,-2843.39,0.0003589,3]
[310262701,1704425467905,-172.53534131,0.0003589,3]
[310262702,1704425467915,-731.98,0.0003589,3]
[310262703,1704425467926,-500.0,0.0003589,3]
[310262704,1704425467936,-500.0,0.0003589,3]
[310262705,1704425467946,-500.0,0.0003589,3]
[310262706,1704425467956,-500.0,0.0003589,3]
[310262707,1704425467966,-500.0,0.0003589,3]
[310262708,1704425467975,-500.0,0.0003589,3]
[310262709,1704425467985,-765.74,0.0003589,3]
[310262710,1704425467995,-500.0,0.0003589,3]
[310262711,1704425468005,-687.9,0.0003589,3]
[310262712,1704425468015,-500.0,0.0003589,3]
[310262713,1704425468024,-500.0,0.0003589,3]
[310262714,1704425468034,-407.5283518,0.0003589,3]
[310262715,1704425468043,-159.64022059,0.0003589,3]
[310262716,1704425468053,-525.31280571,0.0003589,3]
[310262717,1704425468063,-500.0,0.0003589,3]
[310262718,1704425468075,-500.0,0.0003589,3]
[310262719,1704425468085,-920.29,0.0003589,3]
[310262720,1704425468094,-556.67496913,0.0003589,3]
[310262721,1704425468104,-500.0,0.0003589,3]
[310262722,1704425468114,-500.0,0.0003589,3]
[310262723,1704425468125,-500.0,0.0003589,3]
[310262724,1704425468134,-500.0,0.0003589,3]
[310262725,1704425468144,-500.0,0.0003589,3]
[310262726,1704425468153,-500.0,0.0003589,3]
[310262727,1704425468164,-500.0,0.0003589,3]
[310262728,1704425468173,-500.0,0.0003589,3]
[310262729,1704425468183,-500.0,0.0003589,3]
[310262730,1704425468193,-484.62686665,0.0003589,3]
[310262731,1704425468202,-608.15,0.0003589,3]
[310262732,1704425468213,-500.0,0.0003589,3]
[310262733,1704425468222,-500.0,0.0003589,3]
[310262734,1704425468232,-500.0,0.0003589,3]
[310262735,1704425468241,-500.0,0.0003589,3]
[310262736,1704425468250,-500.0,0.0003589,3]
[310262737,1704425468260,-500.0,0.0003589,3]
[310262738,1704425468269,-500.0,0.0003589,3]
[310262739,1704425468279,-500.0,0.0003589,3]
[310262740,1704425468288,-500.0,0.0003589,3]
[310262741,1704425468297,-500.0,0.0003589,3]
[310262742,1704425468307,-500.0,0.0003589,3]
[310262743,1704425468317,-500.0,0.0003589,3]
[310262744,1704425468326,-500.0,0.0003589,3]
[310262745,1704425468335,-500.0,0.0003589,3]
[310262746,1704425468345,-500.0,0.0003589,3]
[310262747,1704425468354,-500.0,0.0003589,3]
[310262748,1704425468365,-500.0,0.0003589,3]
[310262749,1704425468375,-995.28,0.0003589,3]
[310262750,1704425468385,-185.71737061,0.0003589,3]
[310262751,1704425468394,-1208.34,0.0003589,3]
[310262752,1704425468404,-500.0,0.0003589,3]
[310262753,1704425468414,-500.0,0.0003589,3]
[310262754,1704425468424,-500.0,0.0003589,3]
[310262755,1704425468435,-3826.66,0.0003589,3]
[310262756,1704425468445,-500.0,0.0003589,3]
[310262757,1704425468455,-500.0,0.0003589,3]
[310262758,1704425468466,-500.0,0.0003589,3]
[310262759,1704425468477,-1465.93,0.0003589,3]
[310262760,1704425468487,-975.28,0.0003589,3]
[310262761,1704425468497,-2214.47,0.0003589,3]
[310262762,1704425468506,-530.77448753,0.0003589,3]
[310262763,1704425468519,-500.0,0.0003589,3]
[310262764,1704425468529,-500.0,0.0003589,3]
[310262765,1704425468539,-500.0,0.0003589,3]
[310262766,1704425468549,-500.0,0.0003589,3]
[310262767,1704425468559,-500.0,0.0003589,3]
[310262768,1704425468570,-500.0,0.0003589,3]
[310262769,1704425468580,-500.0,0.0003589,3]
[310262770,1704425468589,-500.0,0.0003589,3]
[310262771,1704425468599,-500.0,0.0003589,3]
[310262772,1704425468609,-500.0,0.0003589,3]
[310262773,1704425468618,-500.0,0.0003589,3]
[310262774,1704425468628,-500.0,0.0003589,3]
[310262775,1704425468638,-500.0,0.0003589,3]
[310262776,1704425468648,-4026.21,0.0003589,3]
[310262777,1704425468658,-500.0,0.0003589,3]
[310262778,1704425468667,-184.30862849,0.00035915,14]
[310262779,1704425468677,-157.40105,0.00035998,2]
[310262780,1704425468687,-761.0717531,0.00036,4]
[310262781,1704425468697,-712.72,0.00036,2]
[310262782,1704425468707,-1837.73,0.00036,2]
[310262783,1704425468716,-1166.28069475,0.00036,4]
[310262784,1704425468726,-165.49169783,0.00036065,14]
[310262785,1704425468736,-169.19703699,0.00036089,2]
[310262786,1704425468746,-1002.85,0.00036107,2]
[310262787,1704425468755,-500.0,0.00036163,3]
[310262788,1704425468765,-500.0,0.00036163,3]
[310262789,1704425468775,-1113.29,0.00036163,3]
[310262790,1704425468785,-1113.29,0.00036163,3]
[310262791,1704425468794,-1165.16,0.00036163,3]